[Event "3rd Perez Open 2024"]
[Site "Santa Fe"]
[Date "2024.02.24"]
[Round "4.2"]
[White "Ibarra, Juan Martin"]
[Black "Flores, Diego"]
[Result "0-1"]
[ECO "B42"]
[WhiteElo "2281"]
[BlackElo "2526"]
[Annotator "TA"]
[PlyCount "64"]
[EventDate "2024.02.18"]
[EventType "swiss"]
[EventCountry "ARG"]
[SourceTitle "playchess.com"]
[Source "ChessBase"]
[SourceQuality "1"]
[TimeControl "5400+30"]

{[%evp 15,64,87,79,52,53,16,34,0,21,8,24,0,0,0,0,0,71,8,0,-10,-18,-43,-37,-88,-77,-88,-94,-118,-121,-187,-200,-262,-161,-282,-277,-278,-164,-363,-369,-363,-354,-523,-526,-543,-595,-786,-776,-819,-818,-1154,-1142]} 1. e4 {[%emt 0:05:39]} c5 {[%emt 0:00:30]} 2. Nf3 {[%emt 0:00:15]} e6 {[%emt 0:00:36]} 3. d4 {[%emt 0:00:16]} cxd4 {[%emt 0:00:41]} 4. Nxd4 {[%emt 0:00:07]} a6 {[%emt 0:01:13]} 5. c4 {[%emt 0:00:19]} Nf6 {[%emt 0:04:09]} 6. Nc3 {[%emt 0:00:20]} d6 {[%emt 0:01:27]} 7. Bd3 {[%emt 0:02:32]} g6 {[%emt 0:07:25]} 8. O-O {[%emt 0:03:50]} Bg7 {[%emt 0:00:20]} 9. Kh1 {[%emt 0:01:49]} O-O {[%emt 0:01:37]} 10. f4 {[%emt 0:01:15][%cal Bf2f4,Bf4f5][%mdl 32]} Nbd7 {[%emt 0:09:58]} 11. f5 {[%emt 0:17:18] White is slightly better.} Ne5 {[%emt 0:04:41]} 12. Be2 {[%emt 0:06:44]} Bd7 {[%emt 0:07:30]} 13. Qe1 {[%emt 0:23:57]} (13. Bf4 {simplifies} Rc8 14. Qb3 Nh5 15. Bxh5 gxh5 16. fxe6 fxe6 17. Bxe5 Rxf1+ 18. Rxf1 Bxe5 19. Nf3) 13... Rc8 {[%emt 0:21:58]} 14. Qh4 {[%emt 0:06:31] Dodges Nfg4} Nxc4 {[%emt 0:01:36]} 15. Bg5 {[%emt 0:03:57][%cal Oe4e5]} Nxb2 {[%emt 0:15:01] [#]} (15... h6 $11 {keeps the balance.} 16. Bxh6 Nh7 (16... Nxb2 $2 17. Rab1 $19) (16... Nxe4 17. Qxe4 gxf5 18. Qf4 $16) 17. Qxd8 Rfxd8 18. Bxg7 Kxg7) 16. e5 {[%emt 0:03:46]} dxe5 $11 {[%emt 0:00:16]} 17. Ne4 {[%emt 0:00:28] [#]} Nxe4 {[%emt 0:00:15]} 18. Bxd8 {[%emt 0:00:05]} exf5 {[%emt 0:00:27]} 19. Be7 {[%emt 0:02:35]} (19. Nxf5 $15 Bxf5 20. Be7) 19... exd4 $17 {[%emt 0:00:09]} 20. Bxf8 {[%emt 0:00:18]} Rxf8 {[%emt 0:00:11]} 21. Bf3 {[%emt 0:12:49] White is weak on the dark squares} Bc6 {[%emt 0:02:32][%mdl 1024] Black has strong compensation. Black is much more active.} 22. Rab1 {[%emt 0:05:49]} (22. Rac1 $17) 22... d3 $19 {[%emt 0:00:44]} 23. Qe7 {[%emt 0:00:33]} d2 {[%emt 0:01:12] And now ...Bb5 would win.} 24. Qb4 {[%emt 0:00:46]} (24. Bxe4 $142 Bxe4 (24... fxe4 $2 25. Qg5 $19) 25. Rxb2 Bxb2 26. Rd1) 24... Nd3 {[%emt 0:01:49]} 25. Qb6 {[%emt 0:00:23]} Re8 {[%emt 0:00:28]} (25... Ndc5 $142 {Threatens to win with ...Re8.} 26. Rbd1 Re8) 26. Rbd1 $2 {[%emt 0:00:37]} (26. Bxe4 {only move.} Bxe4 (26... fxe4 $2 27. Qe3 $19) 27. Rbd1) 26... Bh6 {[%emt 0:00:49] This pair of bishops is nice.} 27. Qd4 {[%emt 0:00:27]} Ndc5 {[%emt 0:03:24][%cal Bd3c5,Bc5e4,Be4d2][%mdl 32]} 28. Bxe4 {[%emt 0:00:30]} (28. Kg1 $142) 28... Nxe4 {[%emt 0:00:08] Black is clearly winning.} 29. a3 {[%emt 0:00:33]} Bb5 {[%emt 0:00:20]} 30. Rf3 {[%emt 0:00:31]} Be2 {[%emt 0:00:45]} 31. Rxd2 {[%emt 0:00:18]} Nxd2 {[%emt 0:00:28]} 32. Rh3 {[%emt 0:00:39] [#]} Bg4 $1 {[%emt 0:00:45] Weighted Error Value: White=0.69/Black=0.22 (precise) .  Mistake:       	White=6     	Black=2      Inaccurate:     	White=4     	Black=1      OK:         	White=6     	Black=11     Best:        	---       	Black=2} 0-1

[Event "3rd Perez Open 2024"]
[Site "Santa Fe"]
[Date "2024.02.24"]
[Round "4.3"]
[White "Villca, Julian"]
[Black "Amura, Claudia"]
[Result "1-0"]
[ECO "A13"]
[WhiteElo "2411"]
[BlackElo "2196"]
[Annotator "ChessBase"]
[PlyCount "69"]
[EventDate "2024.02.18"]
[EventType "swiss"]
[EventCountry "ARG"]
[SourceTitle "playchess.com"]
[Source "ChessBase"]
[SourceQuality "1"]
[TimeControl "5400+30"]

1. c4 {[%emt 0:00:19]} e6 {[%emt 0:00:54]} 2. Nf3 {[%emt 0:00:18]} d5 {[%emt 0:00:06]} 3. b3 {[%emt 0:00:04]} Nf6 {[%emt 0:01:31]} 4. Bb2 {[%emt 0:00:07]} c5 {[%emt 0:00:12]} 5. cxd5 {[%emt 0:00:25]} exd5 {[%emt 0:00:18]} 6. e3 {[%emt 0:00:08]} Nc6 {[%emt 0:00:04]} 7. Be2 {[%emt 0:00:05]} d4 {[%emt 0:00:07]} 8. Bb5 {[%emt 0:03:30]} dxe3 {[%emt 0:28:42]} 9. dxe3 {[%emt 0:00:56]} Qa5+ {[%emt 0:01:40]} 10. Nc3 {[%emt 0:00:13]} Bd7 {[%emt 0:00:13]} 11. O-O {[%emt 0:00:50]} Be7 {[%emt 0:00:04]} 12. Bxc6 {[%emt 0:07:17]} Bxc6 {[%emt 0:00:17]} 13. Ne5 {[%emt 0:00:07]} Qc7 {[%emt 0:05:05]} 14. Nxc6 {[%emt 0:00:28]} Qxc6 {[%emt 0:00:05]} 15. e4 {[%emt 0:00:38]} O-O {[%emt 0:02:33]} 16. Qe2 {[%emt 0:02:43]} Rfd8 {[%emt 0:07:31]} 17. Rad1 {[%emt 0:04:05]} Rxd1 {[%emt 0:02:09]} 18. Rxd1 {[%emt 0:00:02]} Rd8 {[%emt 0:00:09]} 19. Rxd8+ {[%emt 0:00:50]} Bxd8 {[%emt 0:00:07]} 20. e5 {[%emt 0:00:11]} Nd7 {[%emt 0:03:57]} 21. f4 {[%emt 0:01:36]} Nf8 {[%emt 0:03:22]} 22. Qe4 {[%emt 0:04:14]} Qd7 {[%emt 0:08:38]} 23. Qd5 {[%emt 0:00:26]} Qe7 {[%emt 0:00:30]} 24. g3 {[%emt 0:01:17]} h5 {[%emt 0:00:34]} 25. Ne4 {[%emt 0:00:30]} b6 {[%emt 0:05:10]} 26. Kg2 {[%emt 0:04:34]} Ne6 {[%emt 0:01:40]} 27. f5 {[%emt 0:00:15]} Nd4 {[%emt 0:03:32]} 28. f6 {[%emt 0:03:14]} Qc7 {[%emt 0:02:15]} 29. Bxd4 {[%emt 0:00:29]} cxd4 {[%emt 0:00:07]} 30. Qxd4 {[%emt 0:00:16]} Qc2+ {[%emt 0:02:41]} 31. Kf3 {[%emt 0:00:08]} Bc7 {[%emt 0:00:10]} 32. Qd7 {[%emt 0:01:56]} Kh7 {[%emt 0:01:54]} 33. Ng5+ {[%emt 0:02:06]} Kg6 {[%emt 0:02:54]} 34. Qxf7+ {[%emt 0:00:08]} Kxg5 {[%emt 0:00:20]} 35. h4+ {[%emt 0:00:08]} 1-0

[Event "3rd Perez Open 2024"]
[Site "Santa Fe"]
[Date "2024.02.24"]
[Round "4.4"]
[White "Yedlin, Isidoro"]
[Black "Rodriguez Vila, Andres"]
[Result "0-1"]
[ECO "A01"]
[WhiteElo "2226"]
[BlackElo "2407"]
[Annotator "ChessBase"]
[PlyCount "38"]
[EventDate "2024.02.18"]
[EventType "swiss"]
[EventCountry "ARG"]
[SourceTitle "playchess.com"]
[Source "ChessBase"]
[SourceQuality "1"]
[TimeControl "5400+30"]

1. b3 {[%emt 0:00:05]} e5 {[%emt 0:00:16]} 2. Bb2 {[%emt 0:00:02]} d6 {[%emt 0:00:07]} 3. d4 {[%emt 0:00:09]} exd4 {[%emt 0:00:05]} 4. Qxd4 {[%emt 0:00:01]} Nc6 {[%emt 0:00:13]} 5. Qd2 {[%emt 0:00:01]} d5 {[%emt 0:01:23]} 6. e3 {[%emt 0:00:04]} Nf6 {[%emt 0:00:12]} 7. Nc3 {[%emt 0:00:03]} Bb4 {[%emt 0:00:43]} 8. O-O-O {[%emt 0:00:49]} O-O {[%emt 0:01:04]} 9. Nge2 {[%emt 0:00:27]} Qe7 {[%emt 0:02:18]} 10. Kb1 {[%emt 0:00:15]} Be6 {[%emt 0:00:35]} 11. f3 {[%emt 0:08:48]} Rfe8 {[%emt 0:01:56]} 12. g4 {[%emt 0:01:09]} Rad8 {[%emt 0:00:50]} 13. g5 {[%emt 0:00:47]} Nh5 {[%emt 0:02:02]} 14. Nd4 {[%emt 0:12:09]} Qxg5 {[%emt 0:01:27]} 15. Bb5 {[%emt 0:00:39]} Bd7 {[%emt 0:03:33]} 16. Bxc6 {[%emt 0:01:40]} bxc6 {[%emt 0:00:07]} 17. Rhg1 {[%emt 0:00:47]} Qxe3 {[%emt 0:00:24]} 18. Qg2 {[%emt 0:02:24]} Bxc3 {[%emt 0:01:03]} 19. Rd3 {[%emt 0:00:11]} Qxg1+ {[%emt 0:00:11]} 0-1

[Event "3rd Perez Open 2024"]
[Site "Santa Fe"]
[Date "2024.02.24"]
[Round "4.5"]
[White "Zapata Charles, Santiago"]
[Black "Acosta, Franco Emanuel"]
[Result "1/2-1/2"]
[ECO "B04"]
[WhiteElo "2300"]
[BlackElo "2098"]
[Annotator "TA"]
[PlyCount "64"]
[EventDate "2024.02.18"]
[EventType "swiss"]
[EventCountry "ARG"]
[SourceTitle "playchess.com"]
[Source "ChessBase"]
[SourceQuality "1"]
[TimeControl "5400+30"]

{[%evp 19,64,8,6,0,0,-4,0,-54,-49,-54,-10,-13,-7,-4,0,0,0,0,0,0,0,0,0,0,0,0,0,0,0,0,0,0,0,0,0,0,0,0,0,0,0,0,0,0,0,-20,-6]} 1. e4 {[%emt 0:04:32]} Nf6 {[%emt 0:01:28]} 2. e5 {[%emt 0:00:08]} Nd5 {[%emt 0:00:08]} 3. d4 {[%emt 0:00:06]} d6 {[%emt 0:00:14]} 4. Nf3 {[%emt 0:00:06]} dxe5 {[%emt 0:00:44]} 5. Nxe5 {[%emt 0:00:17]} c6 {[%emt 0:00:49]} 6. Qf3 {[%emt 0:06:30]} Be6 {[%emt 0:05:49]} 7. Bc4 {[%emt 0:13:16]} Nd7 {[%emt 0:04:45]} 8. O-O {[%emt 0:01:12]} g6 {[%emt 0:07:49]} 9. Nc3 {[%emt 0:04:20]} Bg7 {[%emt 0:25:20]} 10. Re1 {[%emt 0:19:57]} O-O {[%emt 0:05:48]} 11. a3 {[%emt 0:08:54]} Nxe5 {[%emt 0:19:26]} 12. dxe5 {[%emt 0:00:08]} Qc7 {[%emt 0:01:36]} 13. Nxd5 {[%emt 0:09:49]} (13. Qg3 $11) 13... cxd5 $15 {[%emt 0:01:32]} 14. Bxd5 {[%emt 0:03:48]} Bxd5 {[%emt 0:00:40]} 15. Qxd5 {[%emt 0:00:06] The position is equal.} Rfd8 {[%emt 0:00:21]} 16. Qe4 {[%emt 0:02:18] [#]} Qxe5 $1 {[%emt 0:05:00]} 17. Qxe5 {[%emt 0:00:31]} Bxe5 {[%emt 0:00:08]} 18. c3 {[%emt 0:00:43]} Rd7 {[%emt 0:06:53]} 19. Be3 {[%emt 0:01:43]} b6 {[%emt 0:03:14]} 20. a4 {[%emt 0:04:32]} Bc7 {[%emt 0:00:27]} 21. Red1 {[%emt 0:03:30]} Rad8 {[%emt 0:00:43]} 22. Rxd7 {[%emt 0:00:10]} Rxd7 $11 {[%emt 0:00:01][%mdl 4096] Endgame. KRB-KRB} 23. Kf1 {[%emt 0:00:20]} f5 {[%emt 0:02:15][%cal Of5f4]} 24. g3 {[%emt 0:02:29]} e5 {[%emt 0:02:46]} 25. Ke2 {[%emt 0:00:26]} Kf7 {[%emt 0:00:02]} 26. a5 {[%emt 0:00:47]} bxa5 {[%emt 0:00:49]} 27. Bxa7 {[%emt 0:00:02]} Ke6 {[%emt 0:00:48]} 28. Be3 {[%emt 0:01:40]} Bd8 {[%emt 0:02:47]} 29. b4 {[%emt 0:00:57]} axb4 {[%emt 0:00:33]} 30. cxb4 {[%emt 0:00:01]} Rb7 {[%emt 0:00:15]} 31. Rb1 {[%emt 0:04:40]} Bb6 {[%emt 0:00:13]} 32. Bd2 {[%emt 0:03:03]} Kd5 {[%emt 0:03:07] Weighted Error Value: White=0.07 (flawless) /Black=0.03 (flawless) .  Mistake:       	White=1     	---        Inaccurate:     	---       	Black=1      OK:         	White=10    	Black=9} 1/2-1/2

[Event "3rd Perez Open 2024"]
[Site "Santa Fe"]
[Date "2024.02.24"]
[Round "4.6"]
[White "Hutt, Alejandro Gabriel"]
[Black "Villareal, Agustin"]
[Result "1/2-1/2"]
[ECO "E01"]
[WhiteElo "2039"]
[BlackElo "1674"]
[Annotator "NA RC"]
[PlyCount "98"]
[EventDate "2024.02.18"]
[EventType "swiss"]
[EventCountry "ARG"]
[SourceTitle "playchess.com"]
[Source "ChessBase"]
[SourceQuality "1"]
[TimeControl "5400+30"]

1. c4 {[%emt 0:00:04]} e6 {[%emt 0:02:29]} 2. Nf3 {[%emt 0:00:21]} d5 {[%emt 0:00:05]} 3. d4 {[%emt 0:01:03]} Nf6 {[%emt 0:00:15]} 4. g3 {[%emt 0:00:27]} Bb4+ {[%emt 0:00:22]} 5. Bd2 {[%emt 0:00:29]} Bd6 {[%emt 0:00:59]} 6. Nc3 {[%emt 0:02:45]} O-O {[%emt 0:01:45]} 7. Qc2 {[%emt 0:03:11]} Nc6 {[%emt 0:01:45]} 8. c5 {[%emt 0:03:16]} Be7 {[%emt 0:00:14]} 9. Bg2 {[%emt 0:01:52]} b6 {[%emt 0:03:40]} 10. cxb6 {[%emt 0:02:33]} Nb4 {[%emt 0:25:39]} 11. Qc1 {[%emt 0:10:32]} cxb6 {[%emt 0:01:21]} 12. a3 {[%emt 0:00:42]} Nc6 {[%emt 0:01:23]} 13. O-O {[%emt 0:06:03]} Bb7 {[%emt 0:00:53]} 14. Qc2 {[%emt 0:03:49]} a6 {[%emt 0:10:43]} 15. b4 {[%emt 0:07:56]} b5 {[%emt 0:00:37]} 16. Qd3 {[%emt 0:03:17]} Nd7 {[%emt 0:05:03]} 17. Rfc1 {[%emt 0:10:35]} Nb6 {[%emt 0:07:29]} 18. e4 {[%emt 0:03:02]} Qd7 {[%emt 0:02:00]} 19. Ne5 {[%emt 0:03:51]} Nxe5 {[%emt 0:01:01]} 20. dxe5 {[%emt 0:00:07]} d4 {[%emt 0:02:53]} 21. Ne2 {[%emt 0:00:25]} Rfd8 {[%emt 0:00:02]} 22. Rd1 {[%emt 0:05:25]} Nc4 {[%emt 0:04:10]} 23. Bc1 {[%emt 0:00:53]} Nxe5 {[%emt 0:00:22]} 24. Qb3 {[%emt 0:04:30]} Nc6 {[%emt 0:02:13]} 25. Bb2 {[%emt 0:01:32]} e5 {[%emt 0:00:16]} 26. f4 {[%emt 0:00:18]} Qg4 {[%emt 0:03:52]} 27. Bf3 {[%emt 0:00:50]} Qe6 {[%emt 0:02:20]} 28. Qxe6 {[%emt 0:03:46]} fxe6 {[%emt 0:00:06]} 29. Bg4 {[%emt 0:01:44]} Rd6 {[%emt 0:00:21]} 30. Nc1 {[%emt 0:02:11]} exf4 {[%emt 0:02:01]} 31. gxf4 {[%emt 0:00:16]} e5 {[%emt 0:00:01]} 32. f5 {[%emt 0:01:02]} Bg5 {[%emt 0:06:01]} 33. Nd3 {[%emt 0:00:36]} Re8 {[%emt 0:00:01]} 34. a4 {[%emt 0:01:41]} Na7 {[%emt 0:02:13]} 35. Nc5 {[%emt 0:00:47]} Bc8 {[%emt 0:00:01]} 36. Be2 {[%emt 0:00:49]} g6 {[%emt 0:02:30]} 37. fxg6 {[%emt 0:02:46]} Rxg6 {[%emt 0:01:02]} 38. Kh1 {[%emt 0:00:51]} Be3 {[%emt 0:00:24]} 39. Bh5 {[%emt 0:04:09]} Bg4 {[%emt 0:00:33]} 40. Bxg4 {[%emt 0:00:05]} Rxg4 {[%emt 0:00:00]} 41. Bc1 {[%emt 0:01:42]} Bxc1 {[%emt 0:04:23]} 42. Rdxc1 {[%emt 0:00:06]} Re7 {[%emt 0:02:36]} 43. axb5 {[%emt 0:01:28]} axb5 {[%emt 0:00:22]} 44. Rg1 {[%emt 0:00:45]} Rxg1+ {[%emt 0:01:00]} 45. Kxg1 {[%emt 0:00:02]} Nc6 {[%emt 0:00:48]} 46. Nd3 {[%emt 0:00:11]} Rf7 {[%emt 0:02:30]} 47. Kg2 {[%emt 0:00:08]} Kg7 {[%emt 0:01:28]} 48. Rc1 {[%emt 0:01:24]} Nd8 {[%emt 0:00:52]} 49. Rc5 {[%emt 0:00:46]} Nb7 {[%emt 0:00:47]} 1/2-1/2

[Event "3rd Perez Open 2024"]
[Site "Santa Fe"]
[Date "2024.02.24"]
[Round "5.1"]
[White "Flores, Diego"]
[Black "Villca, Julian"]
[Result "1-0"]
[ECO "D35"]
[WhiteElo "2526"]
[BlackElo "2411"]
[Annotator "TA"]
[PlyCount "55"]
[EventDate "2024.02.18"]
[EventType "swiss"]
[EventCountry "ARG"]
[SourceTitle "playchess.com"]
[Source "ChessBase"]
[SourceQuality "1"]
[TimeControl "5400+30"]

{[%evp 18,55,34,28,33,41,34,37,30,45,36,15,39,42,99,98,102,121,133,146,134,125,185,174,310,305,303,309,293,181,410,406,398,391,493,493,953,942,1295,877]} 1. Nf3 {[%emt 0:02:44]} d5 {[%emt 0:00:14]} 2. c4 {[%emt 0:03:07]} e6 {[%emt 0:00:17]} 3. d4 {[%emt 0:02:31]} Nf6 {[%emt 0:00:07]} 4. Bg5 {[%emt 0:00:40]} Be7 {[%emt 0:00:06]} 5. Nc3 {[%emt 0:00:14]} O-O {[%emt 0:00:11]} 6. e3 {[%emt 0:00:14]} a6 {[%emt 0:00:06]} 7. Qc2 {[%emt 0:01:44]} h6 {[%emt 0:00:18]} 8. Bh4 {[%emt 0:00:19]} Nbd7 {[%emt 0:04:09]} 9. cxd5 {[%emt 0:02:10]} exd5 {[%emt 0:00:16]} 10. Bd3 {[%emt 0:00:15][%cal Bf1d3,Bd3c2,Bc2b3][%mdl 32]} c5 {[%emt 0:01:17]} 11. dxc5 {[%emt 0:11:57]} Nxc5 {[%emt 0:00:07]} 12. O-O {[%emt 0:00:18]} Be6 {[%emt 0:00:06] White is slightly better.} 13. Rad1 {[%emt 0:06:20]} Rc8 {[%emt 0:00:26]} 14. Qb1 {[%emt 1:04:57]} Qb6 {[%emt 0:10:45]} 15. Bc2 {[%emt 0:00:00]} Ncd7 {[%emt 0:07:40]} (15... Bd8 $14) 16. Bb3 $16 {[%emt 0:00:00]} Qc5 {[%emt 0:18:32]} 17. Nd4 {[%emt 0:00:00]} (17. Nxd5 {simplifies} Bxd5 18. Bxd5 Nxd5 19. Bxe7 Qxe7 20. Rxd5 Nf6 21. Rd2) 17... Rfd8 {[%emt 0:00:50]} 18. e4 {[%emt 0:00:00][%cal Be3e4,Be4e5][%mdl 32] Nxe6 would now be deadly. White is more active.} Nf8 {[%emt 0:21:36]} 19. Nxe6 {[%emt 0:00:00]} Nxe6 {[%emt 0:00:10]} (19... fxe6 $16 20. exd5 Nxd5 21. Rxd5 exd5 22. Bxe7 Qxe7) 20. e5 $18 {[%emt 0:00:00]} (20. exd5 $6 Nd4 $16) (20. Bxd5 $6 b5 $16 (20... Nxd5 21. Rxd5 Rxd5 22. Bxe7 $16)) 20... Nh5 {[%emt 0:08:51]} (20... Nd7 {was called for.}) 21. Bxe7 {[%emt 0:00:00]} (21. Rxd5 Qb4 $18 (21... Rxd5 $2 22. Bxe7 Qxe7 23. Nxd5 $18)) 21... Qxe7 {[%emt 0:00:01]} 22. Nxd5 {[%emt 0:00:00]} ({Weaker is} 22. Bxd5 Nhf4 $16) 22... Qg5 {[%emt 0:00:12]} 23. Qe4 {[%emt 0:00:00] Black must now prevent h4.} Nc5 $2 {[%emt 0:02:02] [#]} (23... Nhf4 24. Nxf4 Qxf4 25. Qxb7 Qxe5 26. Rxd8+ (26. Qxa6 Nd4 $16) 26... Rxd8 27. Qxa6 Qxb2) 24. h4 $1 {[%emt 0:00:00][%cal Bh2h4,Bh4g5,Bg5g6][%mdl 32]} Nxe4 {[%emt 0:04:30]} 25. hxg5 {[%emt 0:00:00]} Re8 {[%emt 0:00:02] Prevents Ne7+} 26. g6 {[%emt 0:00:00] And now gxf7+ would win. White is clearly winning.} Rxe5 {[%emt 0:01:58]} (26... Nc5 $142 27. Nf6+ gxf6) 27. Nb6 {[%emt 0:00:00][%csl LRc8,LRf7]} Nf4 {[%emt 0:00:35]} 28. Rfe1 {[%emt 0:00:00] Black got outplayed after the opening.   Weighted Error Value: White=0.12 (very precise) /Black=0.50.  Mistake:       	---       	Black=5      Inaccurate:     	White=1     	Black=1      OK:         	White=10    	Black=3} (28. Nxc8 $2 {gets mated.} Ne2+ 29. Kh2 Rh5#) 1-0

[Event "3rd Perez Open 2024"]
[Site "Santa Fe"]
[Date "2024.02.25"]
[Round "5.2"]
[White "Spata, German"]
[Black "Rodriguez Vila, Andres"]
[Result "1/2-1/2"]
[ECO "A89"]
[WhiteElo "2399"]
[BlackElo "2407"]
[Annotator "TA"]
[PlyCount "102"]
[EventDate "2024.02.18"]
[EventType "swiss"]
[EventCountry "ARG"]
[SourceTitle "playchess.com"]
[Source "ChessBase"]
[SourceQuality "1"]
[TimeControl "5400+30"]

{[%evp 16,102,48,16,54,-5,47,38,49,53,44,43,49,47,56,35,62,60,75,52,54,56,82,76,76,44,38,41,122,48,93,79,79,37,33,35,54,55,70,11,0,7,14,0,0,0,0,0,0,-2,0,-3,0,-4,0,0,0,0,0,0,0,-8,0,0,0,0,0,0,0,0,8,0,13,0,50,0,0,0,153,0,234,8,8,0,224,0,8,0,184]} 1. d4 {[%emt 0:06:21]} d6 {[%emt 0:00:42]} 2. Nf3 {[%emt 0:00:43]} f5 {[%emt 0:00:17]} 3. g3 {[%emt 0:01:19]} Nf6 {[%emt 0:00:05]} 4. Bg2 {[%emt 0:00:34]} g6 {[%emt 0:00:07]} 5. c4 {[%emt 0:00:58]} Bg7 {[%emt 0:00:05]} 6. O-O {[%emt 0:00:12]} O-O {[%emt 0:00:04]} 7. Nc3 {[%emt 0:00:33]} Nc6 {[%emt 0:00:13]} 8. d5 {[%emt 0:00:16]} Na5 {[%emt 0:00:05]} 9. Qa4 {[%emt 0:00:35]} b6 {[%emt 0:00:05][%cal Bb7b6,Bb6b5][%mdl 32]} 10. Nd2 {[%emt 0:14:00]} (10. Qc2 $14) 10... Bd7 {[%emt 0:03:11]} (10... e5 $11) 11. Qc2 $14 {[%emt 0:01:28]} c5 {[%emt 0:00:06] White is slightly better.} 12. b3 {[%emt 0:01:11]} a6 {[%emt 0:00:15]} 13. Bb2 {[%emt 0:01:50]} b5 {[%emt 0:00:17]} 14. e3 {[%emt 0:03:47]} Rb8 {[%emt 0:00:53]} 15. Rab1 {[%emt 0:01:30]} Qc7 {[%emt 0:05:54]} 16. Ne2 {[%emt 0:08:40]} Rb7 {[%emt 0:01:17]} 17. h3 {[%emt 0:02:57]} Rfb8 {[%emt 0:02:24]} 18. Bc3 {[%emt 0:02:14]} Nh5 {[%emt 0:01:27]} 19. Bxg7 {[%emt 0:03:48]} Nxg7 {[%emt 0:00:20]} 20. Nf4 {[%emt 0:02:01]} bxc4 {[%emt 0:05:25]} 21. bxc4 {[%emt 0:01:13]} Rb4 {[%emt 0:00:28]} ({Better is} 21... Rxb1 $14 22. Rxb1 Rxb1+ 23. Qxb1 Nb7) 22. Nd3 {[%emt 0:01:20]} ({White should try} 22. Rxb4 $16 Rxb4 23. Re1) 22... Ba4 {[%emt 0:01:27]} 23. Qc3 {[%emt 0:02:59]} Rxb1 {[%emt 0:00:05]} 24. Rxb1 {[%emt 0:01:18]} Rxb1+ {[%emt 0:00:10]} 25. Nxb1 {[%emt 0:00:32]} Qb6 {[%emt 1:17:38]} 26. Nd2 {[%emt 0:01:51]} Ne8 {[%emt 0:00:00]} 27. Qb2 {[%emt 0:00:49]} (27. g4 $14) 27... Qxb2 $11 {[%emt 0:00:00]} 28. Nxb2 {[%emt 0:00:10]} Bc2 {[%emt 0:00:00]} 29. Bf1 {[%emt 0:11:28]} Nf6 {[%emt 0:00:00]} 30. f3 {[%emt 0:00:27]} Kf7 {[%emt 0:00:00]} 31. Kf2 {[%emt 0:03:10]} e6 {[%emt 0:00:00]} 32. dxe6+ {[%emt 0:00:27]} Kxe6 {[%emt 0:00:00]} 33. g4 {[%emt 0:04:05]} Nd7 {[%emt 0:00:00]} 34. Be2 {[%emt 0:05:38]} Nc6 {[%emt 0:00:00]} 35. a3 {[%emt 0:01:36]} g5 {[%emt 0:00:00]} 36. f4 {[%emt 0:02:09]} gxf4 {[%emt 0:00:00]} 37. exf4 {[%emt 0:00:31]} Nd4 {[%emt 0:00:00]} 38. Nf3 {[%emt 0:01:07]} Nf6 {[%emt 0:00:00] [#] aiming for ...Nxe2.} 39. Nxd4+ {[%emt 0:06:15]} cxd4 {[%emt 0:00:00][%mdl 4096] Endgame. KBN-KBN} 40. g5 {[%emt 0:03:37]} Ne4+ {[%emt 0:00:00]} 41. Ke1 {[%emt 0:01:14]} Nc5 {[%emt 0:00:00]} 42. Kd2 {[%emt 0:00:46]} Bb1 {[%emt 0:00:00]} 43. h4 {[%emt 0:01:11]} Kf7 {[%emt 0:00:00]} 44. h5 {[%emt 0:00:45]} Ne4+ {[%emt 0:00:00]} (44... Nb3+ $11 45. Kd1 Nc5) 45. Ke1 {[%emt 0:01:30]} (45. Kc1 $14 Ba2 46. Bd3) 45... a5 {[%emt 0:00:00]} 46. Bd3 {[%emt 0:01:19]} Ba2 {[%emt 0:00:00] [#]} (46... Bxd3 $11 47. Nxd3 Kg7) 47. Ke2 $2 {[%emt 0:00:52]} (47. Bc2 $16) 47... Kg7 $2 {[%emt 0:00:00]} (47... Bb3 $11) 48. Kf3 $2 {[%emt 0:00:29]} (48. h6+ $18 Kg6 49. Na4) 48... Nd2+ {[%emt 0:00:00]} 49. Ke2 $2 {[%emt 0:00:07]} (49. Kg2 $11) 49... Ne4 $18 {[%emt 0:00:00]} 50. Kf3 $2 {[%emt 0:00:09]} (50. h6+ $18 Kg6 51. Na4) 50... Nd2+ $11 {[%emt 0:00:00]} 51. Ke2 $2 {[%emt 0:00:02]} (51. Kg2 $11) 51... Ne4 {[%emt 0:00:00] Weighted Error Value: White=0.34/Black=0.29 (precise) .  Loses game:     	---       	Black=1      Missed win:     	White=2     	---        Mistake:       	White=7     	Black=4      Inaccurate:     	White=2     	Black=3      OK:         	White=18    	Black=9      Best:        	---       	Black=5} 1/2-1/2

[Event "3rd Perez Open 2024"]
[Site "Santa Fe"]
[Date "2024.02.24"]
[Round "5.3"]
[White "Llanos, Guillermo"]
[Black "Felgaer, Ruben"]
[Result "1/2-1/2"]
[ECO "A37"]
[WhiteElo "2289"]
[BlackElo "2572"]
[Annotator "TA"]
[PlyCount "36"]
[EventDate "2024.02.18"]
[EventType "swiss"]
[EventCountry "ARG"]
[SourceTitle "playchess.com"]
[Source "ChessBase"]
[SourceQuality "1"]
[TimeControl "5400+30"]

{[%evp 22,36,8,6,14,14,20,22,29,2,1,0,0,8,12,18,17]} 1. c4 {[%emt 0:00:51]} c5 {[%emt 0:01:38]} 2. Nf3 {[%emt 0:00:05]} g6 {[%emt 0:00:08]} 3. Nc3 {[%emt 0:00:10]} Bg7 {[%emt 0:00:07]} 4. g3 {[%emt 0:00:19]} Nc6 {[%emt 0:00:29]} 5. Bg2 {[%emt 0:00:07]} d6 {[%emt 0:00:58]} 6. O-O {[%emt 0:00:42]} e5 {[%emt 0:02:54]} 7. a3 {[%emt 0:00:53]} a5 {[%emt 0:00:21]} 8. d3 {[%emt 0:00:36]} Nge7 {[%emt 0:00:07]} 9. Rb1 {[%emt 0:00:06]} O-O {[%emt 0:00:11]} 10. Bg5 {[%emt 0:00:14]} f6 {[%emt 0:00:07]} 11. Bd2 {[%emt 0:00:24]} Be6 {[%emt 0:00:06]} 12. Ne1 {[%emt 0:05:12]} Rb8 {[%emt 0:04:41]} 13. Nc2 {[%emt 0:06:34]} d5 {[%emt 0:07:45]} 14. cxd5 {[%emt 0:00:36]} (14. Bxd5 {keeps more tension.} Nxd5 15. cxd5 Bxd5 16. Nxd5 Qxd5 17. b4) 14... Nxd5 {[%emt 0:00:05]} 15. Nxd5 {[%emt 0:00:05]} Bxd5 {[%emt 0:00:04] The position is equal.} 16. Bxd5+ {[%emt 0:00:17]} Qxd5 {[%emt 0:00:01]} 17. b4 {[%emt 0:00:28]} axb4 {[%emt 0:06:21]} 18. axb4 {[%emt 0:00:05]} cxb4 {[%emt 1:13:27] Not much happened in this game.   Weighted Error Value: White=0.01 (flawless) /Black=0.04 (flawless) .  Inaccurate:     	White=1     	---        OK:         	White=3     	Black=1} 1/2-1/2